Cogmind - Beta 13 @@@ ROGUE MODE // 2024.04.02 @ 20:59:54 Player: Valnak Result: Destroyed by D-53 Grenadier with Mini Grenade Launcher Performance ------------- Evolutions (0) 0 Regions Visited (2) 400 Robots Destroyed (10) 50 Value Destroyed (209) 209 Prototype IDs (0) 0 Alien Tech Used (0) 0 Bonus (0) 0 TOTAL SCORE: 659 Bonus ------- None Cogmind --------- Core Integrity 0/250 Matter 297/300 Energy 100/100 System Corruption 0% Temperature Cool (0) Movement Walking (120) Location -10/Mines Parts ------- > --- POWER (1) -------- (None) > --- PROPULSION (2) --- Aluminum Leg > --- UTILITY (2) ------ Heat Sink Small Storage Unit > --- WEAPON (2) ------- Small Laser Light Assault Rifle > --- INVENTORY (8) ---- Aluminum Leg Small Laser Peak State ------------ > --- POWER ------------ Ion Engine > --- PROPULSION ------- Light Treads Light Treads > --- UTILITY ---------- Heat Sink Small Storage Unit > --- WEAPON ----------- Medium Laser Light Assault Rifle > --- INVENTORY -------- Light Assault Rifle [Rating: 7] Favorites ----------- Power Ion Engine Engine Ion Engine Propulsion Light Treads Treads Light Treads Leg Aluminum Leg Utility Small Storage Unit Device Heat Sink Storage Small Storage Unit Weapon Light Assault Rifle Energy Gun Medium Laser Ballistic Gun Light Assault Rifle Build | -11 -10 -10 ------- Run | Yrd Mat Min Slots Evolved . | . . . Power . | . . . Propulsion . | . . . Utility . | . . . Weapon . | . . . Parts Attached 11 | 6 5 . Power 1 | 1 . . Engine 1 | 1 . . Core . | . . . Reactor . | . . . Propulsion 4 | 2 2 . Treads 2 | 2 . . Leg 2 | . 2 . Wheel . | . . . Hover . | . . . Flight . | . . . Utility 2 | 1 1 . Device 1 | . 1 . Storage 1 | 1 . . Processor . | . . . Hackware . | . . . Protection . | . . . Artifact . | . . . Weapon 4 | 2 2 . Energy Gun 2 | 1 1 . Energy Cannon . | . . . Ballistic Gun 2 | 1 1 . Ballistic Cannon . | . . . Launcher . | . . . Special Weapon . | . . . Impact Weapon . | . . . Slashing Weapon . | . . . Piercing Weapon . | . . . Special Melee Weapon . | . . . Unidentified Prototypes . | . . . Parts Lost 6 | . 4 2 Power 1 | . . 1 Propulsion 3 | . 2 1 Utility . | . . . Weapon 2 | . 2 . Highest Loss Streak 3 | . 3 2 To Critical Strikes . | . . . Average Slot Usage (%) 90 | . 87 97 Engine 13 | . 14 12 Treads 16 | . 22 . Leg 8 | . 1 26 Device 10 | . 9 14 Storage 14 | . 14 14 Energy Gun 9 | . 7 14 Ballistic Gun 16 | . 17 14 Naked Turns . | . . . Heaviest Build 14 | 13 14 13 Greatest Support 40 | 40 40 20 Greatest Overweight (x) 3 | . 3 . Average Overweight (x) . | . . . Largest Inventory Capacity 8 | 8 8 8 Average Capacity 7 | 7 8 8 Most Carried 3 | 2 3 2 Average Carried 1 | . 1 2 Final Capacity 8 | 8 8 8 Final Carried 2 | 1 2 2 Class Distribution -------------------- 75% | Mutant 24% | Scavenger-Mutant Dominant Class ---------------- Mutant | -10/Materials Scavenger-Mutant | -10/Mines Resources | -11 -10 -10 ----------- Run | Yrd Mat Min Matter Collected 337 | 221 116 . Remotely . | . . . Salvage Created 259 | . 259 . Parts 16 | . 16 . Haulers Intercepted . | . . . Recyclers Shooed . | . . . Parts Field Recycled . | . . . Retrieved Matter . | . . . Parts Self-Destructed . | . . . Prevented . | . . . Kills | -11 -10 -10 ------- Run | Yrd Mat Min Combat Hostiles Destroyed 10 | . 10 . Guns 10 | . 10 . Classes Destroyed 2 | . 2 . Swarmer 6 | . 6 . Grunt 4 | . 4 . Best Kill Streak 3 | . 3 . Combat Bots Only 3 | . 3 . Max Kills in Single Turn 1 | . 1 . Gunslinging . | . . . Exploded . | . . . Melee . | . . . Uniques/NPCs Destroyed . | . . . Combat | -11 -10 -10 -------- Run | Yrd Mat Min Hostile Shots Fired 109 | . 81 28 Missed 24 | . 17 7 Damage Taken 1026 | . 702 324 Core 268 | . 161 107 Absorbed by Shields . | . . . Core Remaining (%) 100 | 100 . . Volleys Fired 51 | . 48 3 Largest 2 | . 2 2 Hottest 70 | . 70 60 Shots Fired 78 | . 72 6 Gun 78 | . 72 6 Cannon . | . . . Launcher . | . . . Special . | . . . Kinetic 57 | . 54 3 Thermal 21 | . 18 3 Explosive . | . . . Electromagnetic . | . . . Robot Hit Streak 11 | . 11 3 Robot Miss Streak 4 | . 4 3 Penetration Max . | . . . Secondary Targets 2 | . 2 . Max Gunslinging Chain 1 | . 1 . Shots Hit Robots 49 | . 46 3 Core Hits 19 | . 18 1 Critical Kills . | . . . Critical Parts Destroyed . | . . . Critical Strikes 2 | . 2 . Burn 2 | . 2 . Melee Attacks . | . . . Impact . | . . . Slashing . | . . . Piercing . | . . . Sneak Attacks . | . . . Combat Hostiles . | . . . Follow-up Attacks . | . . . Damage Inflicted 446 | . 417 29 Guns 446 | . 417 29 Cannons . | . . . Explosions . | . . . Melee . | . . . Ramming . | . . . Kinetic 310 | . 303 7 Thermal 136 | . 114 22 Explosive . | . . . Electromagnetic . | . . . Impact . | . . . Slashing . | . . . Piercing . | . . . Highest Corruption . | . . . Average Corruption . | . . . Corruption Purged . | . . . Corruption Blocked . | . . . Overload Shots . | . . . Overflow Damage . | . . . Projectiles . | . . . Explosions . | . . . Melee . | . . . Knockbacks . | . . . Impact . | . . . Kinetic . | . . . Secondary . | . . . Self-Inflicted Damage . | . . . Shots . | . . . Rammed . | . . . Targets Rammed . | . . . Kicked . | . . . Crushed . | . . . Highest Temperature 120 | . 120 9 Average Temperature 44 | . 47 9 Received Heat Transfer 375 | . 285 90 Siege Activations . | . . . Robots Corrupted . | . . . Combat Hostiles . | . . . Parts Fried . | . . . Impact Corruptions . | . . . Robots Melted . | . . . Combat Hostiles . | . . . Parts Melted 4 | . 4 . Heat Transferred 531 | . 481 50 Parts Sabotaged . | . . . Parts Stolen . | . . . Parts Stripped . | . . . Power Chain Reactions . | . . . Alert | -11 -10 -10 ------- Run | Yrd Mat Min Peak Influence 270 | . 270 120 Initial 105 | . . 105 Average 125 | . 153 109 Maximum Alert Level 1 | . 1 . Low Security (%) 67 | 100 50 100 Level 1 32 | . 49 . Level 2 . | . . . Level 3 . | . . . Level 4 . | . . . Level 5 . | . . . High Security . | . . . Max Security . | . . . Squads Dispatched 2 | . 2 . Investigation . | . . . Extermination . | . . . Reinforcement 2 | . 2 . Assault . | . . . Garrison . | . . . Intercept . | . . . Searches Triggered . | . . . Construction Impeded . | . . . Haulers Reinforced . | . . . Active Scanning Responses . | . . . Cargo Convoy Interrupts . | . . . Stealth | -11 -10 -10 --------- Run | Yrd Mat Min Distress Signals 1 | . 1 . Communications Jammed . | . . . Distress Signals . | . . . Times Spotted 21 | . 13 8 Peak Tracking Total 5 | . 4 5 Tactical Retreats 1 | . 1 . Traps | -11 -10 -10 ------- Run | Yrd Mat Min Traps Triggered 2 | . 2 . Indirectly . | . . . Trap Hack Attempts . | . . . Triggered . | . . . Disarmed . | . . . Reprogrammed . | . . . Reused . | . . . Traps Extracted . | . . . Installed . | . . . Triggered . | . . . Machines | -11 -10 -10 ---------- Run | Yrd Mat Min Machines Disabled . | . . . Max in Single Turn . | . . . Machines Repaired . | . . . Machines Dismantled . | . . . Machines Sabotaged . | . . . Overloaded Fab Kills . | . . . Hacking | -11 -10 -10 --------- Run | Yrd Mat Min Machines Accessed . | . . . Terminals . | . . . Fabricators . | . . . Repair Stations . | . . . Recycling Units . | . . . Scanalyzers . | . . . Garrison Access . | . . . Total Hacks . | . . . Successful . | . . . Failed . | . . . Catastrophic . | . . . Database Lockouts . | . . . Manual . | . . . Terminals . | . . . Fabricators . | . . . Repair Stations . | . . . Recycling Units . | . . . Scanalyzers . | . . . Garrison Access . | . . . Terminal Hacks . | . . . Fabricator Hacks . | . . . Repair Station Hacks . | . . . Recycling Unit Hacks . | . . . Scanalyzer . | . . . Garrison Access Hacks . | . . . Unauthorized Hacks . | . . . Terminals . | . . . Fabricators . | . . . Repair Stations . | . . . Recycling Units . | . . . Scanalyzers . | . . . Garrison Access . | . . . Data Cores Recovered . | . . . Used . | . . . Hacking Detections . | . . . Full Trace Events . | . . . Feedback Events . | . . . Feedback Blocked . | . . . Robot Schematics Acquired . | . . . Robots Built . | . . . Authchips . | . . . Time . | . . . Total Robot Build Rating . | . . . Part Schematics Acquired . | . . . Parts Built . | . . . Authchips . | . . . Time . | . . . Total Part Build Rating . | . . . Parts Repaired . | . . . Time . | . . . Parts Recycled . | . . . Recycled Matter . | . . . Retrieved Matter . | . . . Retrieved Components . | . . . Parts Scanalyzed . | . . . Part Schematics Acquired . | . . . Parts Damaged . | . . . Bothacking | -11 -10 -10 ------------ Run | Yrd Mat Min Used RIF Installer . | . . . Robots Hacked . | . . . Non-combat . | . . . Combat . | . . . Robot Hacks Applied . | . . . Relay Couplers Released . | . . . Fabnet Peak Effective % . | . . . Robots Rewired . | . . . Allies Hacked . | . . . Hacks Repelled . | . . . Allies | -11 -10 -10 -------- Run | Yrd Mat Min Total Allies . | . . . Largest Group . | . . . Highest-Rated Group . | . . . Highest-Rated Ally . | . . . Total Orders . | . . . Ally Attacks . | . . . Total Damage . | . . . Kills . | . . . Allies Corrupted . | . . . Allies Melted . | . . . Intel | -11 -10 -10 ------- Run | Yrd Mat Min Robot Analysis Total . | . . . Derelict Logs Recovered 1 | . . 1 Drone Launches . | . . . Drone Recoveries . | . . . Exploration | -11 -10 -10 ------------- Run | Yrd Mat Min Turns Passed 520 | 64 342 114 Spaces Moved 263 | 39 136 88 Core 12 | 9 3 . Treads 148 | 30 118 . Legs 103 | . 15 88 Wheels . | . . . Hover . | . . . Flight . | . . . Fastest Speed 50 | 50 120 120 Average Speed 141 | 134 156 120 Slowest Speed 200 | 160 200 120 Overloaded Moves . | . . . Propulsion Burnouts . | . . . Robots Hopped . | . . . Cave-ins Triggered . | . . . Exploration Rate (%) 18 | 3 28 24 Regions Visited 2 Branch Regions 1 Pre-discovered Areas . | . . . Known Exits Taken . | . . . Unknown Exits Taken 2 | 1 1 . Scrap Searched . | . . . Spaces Dug . | . . . Terrain Destroyed . | . . . Melee . | . . . Projectile . | . . . AOE . | . . . Terrain Rammed . | . . . Walls Destroyed . | . . . Machines Disabled . | . . . Actions | -11 -10 -10 --------- Run | Yrd Mat Min Total 346 | 51 204 91 Wait 10 | . 10 . Move 261 | 38 135 88 Hop . | . . . Pick Up 13 | 7 6 . Fast Attach . | . . . Attach 11 | 6 5 . Detach . | . . . Swap . | . . . Drop . | . . . Fire 51 | . 48 3 Melee . | . . . Ram . | . . . Kick . | . . . Crush . | . . . Escape Stasis . | . . . Rewire . | . . . Trap . | . . . Miscellaneous . | . . . Route ------- -11/Scrapyard -10/Materials -10/Mines History --------- Turn | Location | Event 3 | -11/Scrapyard | Discovered new exit (range 15) 65 | -11/Scrapyard | Entered Materials 240 | -10/Materials | Discovered new exit (range 11) 309 | -10/Materials | Build established: Mutant 359 | -10/Materials | Core integrity fell below 50% 379 | -10/Materials | Lost 3 parts (2n1w) 407 | -10/Materials | Entered Mines 503 | -10/Mines | Core integrity fell below 20% 509 | -10/Mines | Assembled infested the area 514 | -10/Mines | Assisted by a Guerilla fighting off Assembled 518 | -10/Mines | Learned Materials emergency access door positions 521 | -10/Mines | Destroyed by D-53 Grenadier with Mini Grenade Launcher Last Messages --------------- HV Slug penetrates G-34 Mercenary. G-34 Mercenary suffers critical hit (Destroy). G-47 Trooper suffers critical hit (Destroy). HV Slug penetrates G-34 Mercenary. G-34 Mercenary suffers critical hit (Destroy). G-34 Mercenary destroyed. A derelict emerges from the shadows: "You need to get out of here! I've been tracking a group of Assembled to figure out where they're coming from, and they're closing on this area, come on!" Ion Engine destroyed. G-47 Trooper knocked back. C-30 ARC bursts open, deploying its payload. D-53 Grenadier unfolds itself. Acquired derelict log, extracted data. Data stored: Materials emergency access points. Aluminum Leg destroyed. K-01 Serf collects debris. K-01 Serf destroyed. Map ----- +----------------------------------------------------+ | ???????????????????# ## ## #????????? | | ?????????????????### #????????? | | ????????????????## ##????????? | | ????????????????# ##?????????? | | ????????????????# #######??????????? | | ????????????????## ###????????????????? | | ?????????????????# ##??????????????????? | | ?????????????????# ##??????????????????? | | ?????????????????## ##?????????????????? | | ??????????????????## ##????????????????? | | ??????????????????## ##???????????????? | | ?????????????????## #???????????????? | | ????????????????## $ #???????????????? | | ???????????????## ##???????????????? | | ???????????????# ##????????????????? | | ???????????????# ##?????????????????? | | ???????????????#% = % ##??????????????????? | | ???????????????# [%## ##???????????????????? | | ???????????????# % =## #????????????????????? | | ???????????????## ## #??####??????????????? | | ????????????????## ## ### ###????????????? | | ?????????????????## ## #### #??????? | | ??????????????????# sd % #??????? | | ?????????????????## sd #??????? | | ?????????????????# s #???????????? | | ?????????????????# @ #???????????? | | ?????????????????## ## ##???????????? | | ??????????????????#### =% ##????????????? | | ?????????????????????# # ##?????????????? | | ?????????????????????# ## # ###??????????????? | | ?????????????????????#??# ###????????????????? | | ????????????????????????# #??????????????????? | | ????????????????????????# #??????????????????? | | ???????????????????????? #??????????????????? | | ????????????????????????# ???????????????????? | | ????????????????????????? ???????????????????? | | ????????????????????????? ???????????????????? | | ????????????????????????? ???????????????????? | | ?????????????????????????#???????????????????? | | ?????????????????????????????????????????????? | | ?????????????????????????????????????????????? | | ?????????????????????????????????????????????? | | ?????????????????????????????????????????????? | | ?????????????????????????????????????????????? | | ?????????????????????????????????????????????? | | ?????????????????????????????????????????????? | | ?????????????????????????????????????????????? | | ?????????????????????????????????????????????? | | ?????????????????????????????????????????????? | | ?????????????????????????????????????????????? | +----------------------------------------------------+ Best States ------------- Heat Dissipation 35 Energy Generation 10 Energy Capacity 250 Matter Stores 300 Matter Capacity 300 Sight Range 16 Terrain Scan Density 10 Evasion (%) 55 Recoil Reduction 2 Item Schematics ----------------- None Robot Schematics ------------------ None Fabricated ------------ Nothing Alien Tech Used ----------------- None Achievements -------------- None Challenges ------------ None Game ------ Seed GuidanceControlCannon Manual? 0 Play Time 00:06:05 Cumulative 2.0 hours Start 2024.04.02 @ 20:54:36 End 2024.04.02 @ 20:59:54 Sessions 1 Manual Loads 0 Difficulty Rogue Special Mode None Game No. 5 Rogue 5 Adventurer 0 Explorer 0 Win Type - Total 0 Types 0/0/0/0/0/0/0/0/0 Lore% 0 Gallery% 6 Achievement% 5 Wizard Run 0 Options --------- Layout 1 ASCII 0 Keyboard 0 Movement Mouse Keybinds 0 Fullscreen 1 Font 24/Smallcaps Map View 50x35 Zoom Use 0% Tactical HUD 0 Map Filters NONE Filters NONE Steam 1 RUN: 51e9024a-db15-4fc8-a00a-6b4a6e049d3e